bitfinex/quotes_ETHUSD_20250807
["timestamp","ask_amount","ask_price","bid_price","bid_amount"]
[1754585575999,0.55,3815.5,3814.8,0.1312]
[1754585576211,0.55,3815.3,3814.8,2.75255825]
[1754585576691,0.55,3815.3,3814.8,0.5732]
[1754585576887,0.1312,3815.4,3814.9,1.0024]
[1754585577098,4.397,3815.6,3815.3,0.1312]
[1754585577832,4.947,3815.6,3815.5,2.62088848]
[1754585577997,1e-08,3815.8,3815.7,2.6207511]
[1754585578404,1e-08,3815.8,3815.7,3.6040511]
[1754585578619,1e-08,3815.8,3815.5,2.75204926]
[1754585578798,1e-08,3815.8,3815.6,2.6207993]
[1754585579622,1e-08,3815.8,3815.5,1.1145]
[1754585579623,1e-08,3815.8,3815.5,3.73536509]
[1754585579823,1e-08,3815.8,3815.3,2.62102586]
[1754585580024,1e-08,3815.8,3814.3,10.01766323]
[1754585580025,0.55,3815.7,3814.9,0.9833]
[1754585580196,0.55,3815.5,3815.1,0.1312]
[1754585580535,0.55,3815.5,3815.4,2.62095717]
[1754585580762,4.945,3815.6,3815.5,2.62088848]
[1754585581121,4.945,3815.6,3815.5,0.9833]
[1754585581325,4.945,3815.6,3815.2,2.62106366]
[1754585581514,4.945,3815.6,3815.3,2.62097552]
[1754585581839,4.945,3815.6,3815.3,0.4346]
[1754585582249,4.945,3815.6,3815.3,3.05561258]
[1754585582404,4.945,3815.6,3815.3,3.60427514]
[1754585582604,4.945,3815.6,3815.4,2.62093908]
[1754585583018,4.945,3815.6,3815.2,2.62108713]
[1754585583019,4.945,3815.6,3815.3,2.62100057]
[1754585583402,4.945,3815.6,3815.3,0.4346]
[1754585583606,4.945,3815.6,3815.1,2.75230336]
[1754585583607,2.62096485,3815.4,3814.5,0.5487]
[1754585583806,0.55,3815.3,3814.8,0.1312]
[1754585584005,0.5696714,3815.3,3814.8,0.1312]
[1754585584244,0.55,3815.0,3814.6,2.75265834]
[1754585584420,4.944,3815.0,3814.6,2.75265834]
[1754585584641,4.944,3815.0,3814.6,0.1312]
[1754585584835,7.56524343,3815.0,3814.6,0.1312]
[1754585585031,4.944,3815.0,3814.6,0.1312]
[1754585585365,4.944,3815.0,3814.6,3.73595426]
[1754585585668,4.944,3815.0,3814.2,0.9833]
[1754585585669,0.55,3814.8,3814.2,0.9833]
[1754585586055,0.55,3814.6,3814.2,3.60503009]
[1754585586258,0.55,3814.6,3814.2,0.9833]
[1754585586259,4.394,3814.5,3814.2,0.9833]
[1754585586435,4.944,3814.5,3814.4,2.62164429]
[1754585586741,4.944,3814.5,3814.4,3.60494429]
[1754585586942,4.944,3814.5,3814.1,0.1312]
[1754585587466,0.55,3814.4,3814.1,0.1312]
[1754585587666,0.6812,3814.4,3813.9,2.62195971]
[1754585587874,0.55,3814.4,3813.8,2.62204731]
[1754585588062,4.394,3814.5,3813.7,0.1312]
[1754585588063,0.55,3814.1,3813.7,0.1312]
[1754585588373,0.1312,3814.2,3813.7,0.1312]
[1754585588374,0.55,3813.9,3813.7,0.1312]
[1754585588530,0.55,3813.9,3813.8,0.4346]
[1754585588731,0.55,3813.9,3813.8,3.05665674]
[1754585588968,0.55,3813.9,3813.8,0.4346]
[1754585589277,11.0395879,3816.0,3814.1,2.6218505]
[1754585589567,8.9155336,3816.1,3814.8,2.6213694]
[1754585589568,0.1312,3815.0,3814.8,2.6213694]
[1754585589768,5.0732,3815.0,3814.9,0.4346]
[1754585589973,5.0732,3815.0,3814.9,3.05590068]
[1754585590155,5.0732,3815.0,3814.9,0.4346]
[1754585590354,0.55,3814.9,3814.8,3.17004986]
[1754585590569,0.55,3814.9,3814.8,2.62134986]
[1754585590860,0.55,3814.9,3814.7,2.62142022]
[1754585591055,0.55,3814.9,3814.8,3.6046694]
[1754585591272,2.778,3816.7,3814.8,3.6046694]
[1754585591273,0.1312,3815.4,3815.3,2.62102586]
[1754585591573,0.1312,3815.7,3815.4,2.62091836]
[1754585591756,4.392,3815.6,3815.3,0.9833]
[1754585592101,4.392,3815.6,3815.5,2.62088848]
[1754585592379,4.392,3815.6,3814.9,0.026213]
[1754585592380,4.392,3815.6,3814.8,0.4346]
[1754585592544,4.392,3815.6,3814.7,0.5487]
[1754585592545,0.55,3815.1,3814.7,3.17010143]
[1754585592881,0.55,3814.9,3814.4,0.4346]
[1754585593058,0.55,3814.6,3814.4,0.4346]
[1754585593265,0.55,3814.6,3813.6,2.62213987]
[1754585593266,4.941,3814.5,3814.0,2.62189296]
[1754585593458,4.941,3814.5,3814.4,2.62164429]
[1754585593459,4.391,3814.5,3814.4,2.62164429]
[1754585593659,4.941,3814.5,3814.4,0.4346]
[1754585593848,4.941,3814.5,3814.2,0.1312]
[1754585594049,0.55,3814.4,3814.2,0.1312]
[1754585594245,0.55,3814.4,3813.7,0.5487]
[1754585594448,3.19134039,3814.4,3813.7,0.5487]
[1754585594765,3.17164542,3814.4,3813.8,2.62200107]
[1754585594964,3.17164542,3814.4,3813.7,0.6799]
[1754585594965,0.55,3814.2,3813.7,0.6799]
[1754585595170,2.62192168,3814.0,3813.1,2.62347954]
[1754585595482,2.62210278,3813.8,3813.1,0.001]
[1754585595683,2.62205294,3813.9,3813.1,0.001]
[1754585595894,0.002,3816.8,3813.1,0.001]
[1754585595895,0.55,3813.6,3813.1,0.001]
[1754585596057,0.55,3813.4,3813.1,0.001]
[1754585596390,6.17246931,3813.2,3813.1,0.001]
[1754585596679,3.55,3813.2,3813.1,0.001]
[1754585597046,6.17246931,3813.2,3813.1,0.001]
[1754585597449,6.73216931,3813.2,3813.1,0.001]
[1754585597849,6.17246931,3813.2,3813.1,0.001]
[1754585598084,3.55,3813.2,3813.1,0.001]
[1754585598586,0.5597,3814.1,3813.1,0.001]
[1754585598751,0.55,3813.2,3813.1,0.4356]
[1754585599084,4.94,3813.2,3813.1,0.001]
[1754585599664,0.55,3813.2,3813.1,0.001]
[1754585599863,4.39,3813.2,3813.1,0.9843]
[1754585600089,4.39,3813.2,3813.1,0.001]
[1754585600589,0.55,3813.7,3813.1,2.62353809]
[1754585600759,0.55,3813.5,3813.2,2.62242071]
[1754585600954,2.62198964,3813.9,3813.1,0.001]
[1754585600955,0.55,3813.3,3813.1,0.001]
[1754585601191,4.389,3813.2,3813.1,0.001]
[1754585601766,4.389,3813.2,3813.1,3.60683809]
[1754585603593,4.939,3813.2,3813.1,0.001]
[1754585603893,11.12116931,3813.2,3813.1,0.001]
[1754585605056,11.21736931,3813.2,3813.1,0.001]
[1754585605364,11.34856931,3813.2,3813.1,0.001]
[1754585605589,11.25236931,3813.2,3813.1,0.001]
[1754585605896,11.25236931,3813.2,3812.7,0.001]
[1754585605897,3.17274443,3812.8,3812.7,0.001]
[1754585606064,10.55974443,3812.8,3812.7,0.001]
[1754585606256,10.55974443,3812.8,3812.4,0.001]
[1754585606257,3.17295081,3812.5,3812.4,0.001]
[1754585606476,10.55995081,3812.5,3812.4,0.001]
[1754585607099,11.11965081,3812.5,3812.4,0.001]
[1754585608130,11.71585081,3812.5,3812.4,0.001]
[1754585608795,11.61965081,3812.5,3812.4,0.001]
[1754585609024,5.437,3812.5,3812.4,0.001]
[1754585609217,4.887,3812.5,3812.4,0.001]
[1754585609626,11.61305081,3812.5,3812.4,0.001]
[1754585609826,18.00925081,3812.5,3812.4,0.001]
[1754585610007,6.17301962,3812.4,3812.3,1e-08]
[1754585610313,7.25663041,3812.4,3812.3,1e-08]
[1754585610516,18.20001831,3812.4,3812.3,1e-08]
[1754585610850,22.58701831,3812.4,3812.3,1e-08]
[1754585611510,11.54643041,3812.4,3812.3,1e-08]
[1754585611699,11.30677868,3812.4,3812.3,1e-08]
[1754585611906,22.58588351,3812.4,3812.3,1e-08]
[1754585612164,11.35163655,3812.4,3812.3,1e-08]
[1754585612318,10.55901962,3812.4,3812.3,1e-08]
[1754585612960,4.386,3812.4,3812.3,1e-08]
[1754585613166,7.00901962,3812.4,3812.3,1e-08]
[1754585613315,10.00901962,3812.4,3812.3,1e-08]
[1754585613716,10.55901962,3812.4,3812.3,1e-08]
[1754585614360,11.11211962,3812.4,3812.3,1e-08]
[1754585614543,10.7985657,3812.4,3812.3,1e-08]
[1754585614742,11.3516657,3812.4,3812.3,1e-08]
[1754585615061,11.4478657,3812.4,3812.3,1e-08]
[1754585615219,11.5530017,3812.4,3812.3,1e-08]
[1754585615760,11.4568017,3812.4,3812.3,1e-08]
[1754585615938,11.5880017,3812.4,3812.3,1e-08]
[1754585616143,11.0349017,3812.4,3812.3,1e-08]
[1754585616651,11.03370738,3812.4,3812.3,1e-08]
[1754585616822,3.64870738,3812.4,3812.3,1e-08]
[1754585617021,0.236336,3812.4,3812.3,1e-08]
[1754585617217,4.5162,3812.4,3812.3,0.96800001]
[1754585617456,4.5162,3812.4,3812.3,0.42880001]
[1754585617457,10.13921962,3812.4,3812.3,0.42880001]
[1754585617648,7.5162,3812.4,3812.3,0.42880001]
[1754585617826,8.0662,3812.4,3812.3,0.42880001]
[1754585618022,10.68921962,3812.4,3812.3,0.42880001]
[1754585618224,10.68921962,3812.4,3812.3,0.96800001]
[1754585618225,3.1312,3812.4,3812.3,0.96800001]
[1754585618623,8.0662,3812.4,3812.3,0.96800001]
[1754585619029,8.0652,3812.4,3812.3,0.96800001]
[1754585619426,0.5,3812.5,3812.4,2.62301962]
[1754585619645,4.884,3812.5,3812.4,4.21243432]
[1754585620250,4.884,3812.5,3812.4,0.968]
[1754585620859,5.434,3812.5,3812.4,3.59101962]
[1754585621456,4.884,3812.5,3812.4,3.59101962]
[1754585622064,4.883,3812.5,3812.4,3.59101962]
[1754585622280,4.883,3812.5,3812.4,1.60253447]
[1754585622479,4.883,3812.5,3812.4,0.968]
[1754585622783,4.883,3812.5,3812.4,3.59101962]
[1754585623160,4.885,3812.5,3812.4,3.59101962]
[1754585624378,4.885,3812.5,3812.4,0.968]
[1754585624756,4.885,3812.5,3812.4,3.59101962]
[1754585625783,4.884,3812.5,3812.4,3.59101962]
[1754585626159,0.502,3812.5,3812.4,3.59101962]
[1754585626487,6.4322,3812.9,3812.4,3.59101962]
[1754585626488,0.1312,3812.9,3812.8,2.62274443]
[1754585626649,0.24055042,3813.6,3813.0,2.62260687]
[1754585627005,0.002,3813.7,3813.4,2.62233177]
[1754585627006,4.381,3813.5,3813.4,2.62233177]
[1754585627482,4.381,3813.5,3813.4,3.72153177]
[1754585629348,0.002,3813.7,3813.6,2.62219425]
[1754585629548,4.382,3813.7,3813.6,2.62219425]
[1754585629769,4.382,3813.7,3813.6,3.72139425]
[1754585630377,4.381,3813.7,3813.6,3.72139425]
[1754585631180,4.381,3813.7,3813.6,3.59019425]
[1754585631399,4.381,3813.7,3813.6,2.62219425]
[1754585631600,4.381,3813.7,3813.5,0.1312]
[1754585632068,4.381,3813.7,3812.7,2.6227722]
[1754585632069,0.55,3813.6,3813.0,2.62254983]
[1754585632269,0.55,3813.6,3813.1,0.1312]
[1754585632270,0.6812,3813.6,3813.1,0.1312]
[1754585632586,0.6812,3813.6,3813.2,2.62242387]
[1754585632792,0.6812,3813.6,3813.2,0.968]
[1754585632970,0.6812,3813.6,3813.3,0.4288]
[1754585633170,0.6812,3813.6,3813.1,0.1312]
[1754585633171,0.6812,3813.6,3813.1,2.75371382]
[1754585633417,0.6812,3813.6,3812.9,2.62264165]
[1754585633619,0.55,3813.2,3812.8,0.56]
[1754585633822,4.377,3813.1,3812.8,0.1312]
[1754585634107,4.377,3813.1,3812.9,0.968]
[1754585634269,4.377,3813.1,3812.5,3.59092634]
[1754585634466,4.377,3813.1,3812.7,0.1312]
[1754585634726,4.377,3813.1,3812.8,0.968]
[1754585634867,4.377,3813.1,3812.7,2.75396929]
[1754585635073,4.377,3813.1,3812.9,3.59065458]
[1754585635274,4.377,3813.1,3812.9,1.0992]
[1754585635816,4.377,3813.1,3812.9,3.72186598]
[1754585636019,4.377,3813.1,3812.9,0.6704]
[1754585636229,4.377,3813.1,3813.0,3.72180687]
[1754585636230,4.375,3813.1,3813.0,3.72180687]
[1754585636378,0.002,3813.7,3813.0,3.72180687]
[1754585636379,0.002,3813.7,3813.0,1.0992]
[1754585636572,4.375,3813.6,3813.5,2.62226301]
[1754585636916,4.375,3813.6,3813.5,3.59026301]
[1754585637360,0.002,3813.7,3813.5,3.59026301]
[1754585637361,0.002,3813.7,3813.6,2.62219425]
[1754585637730,0.002,3813.7,3813.6,3.59019425]
[1754585637928,4.377,3813.7,3813.6,3.76836128]
[1754585638129,4.377,3813.7,3813.6,4.20326128]
[1754585638130,0.002,3813.7,3813.6,4.20326128]
[1754585638345,0.002,3813.7,3813.6,4.36068322]
[1754585638556,0.002,3813.7,3813.6,4.33446128]
[1754585640579,0.002,3813.7,3813.6,4.36068322]
[1754585640861,0.002,3814.2,3814.1,2.6218505]
[1754585641063,0.002,3814.2,3814.1,2.7530505]
[1754585641363,0.002,3814.2,3814.1,3.6997505]
[1754585641538,1e-08,3815.8,3814.1,1.1041185]
[1754585641863,1e-08,3815.8,3815.7,2.6207511]
[1754585641864,4.37200001,3815.8,3815.7,2.6207511]
[1754585642077,4.37200001,3815.8,3815.1,2.62110416]
[1754585642078,4.37200001,3815.8,3815.2,0.4349]
[1754585642279,4.37200001,3815.8,3815.6,0.1312]
[1754585642490,4.37200001,3815.8,3815.7,2.6207511]
[1754585643271,4.37200001,3815.8,3815.7,3.0556511]
[1754585643429,4.37200001,3815.8,3815.7,3.5674511]
[1754585644343,4.37200001,3815.8,3815.6,2.75200297]
[1754585644546,4.37200001,3815.8,3814.5,3.0]
[1754585644547,4.37200001,3815.8,3815.2,2.62103859]
[1754585644861,0.55,3815.7,3815.3,2.7521745]
[1754585645066,0.55,3815.7,3815.4,2.62095118]
[1754585645266,0.55,3815.7,3814.7,2.62139208]
[1754585645267,0.55,3815.4,3814.7,2.62139208]
[1754585645579,0.6526,3815.6,3814.7,2.62139208]
[1754585645580,0.55,3815.2,3814.7,2.62138881]
[1754585645872,0.55,3815.2,3814.2,0.28839894]
[1754585645873,4.369,3815.1,3815.0,2.62123197]
[1754585646032,4.369,3815.1,3814.9,2.62128106]
[1754585646227,4.369,3815.1,3814.8,2.62135101]
[1754585646433,4.369,3815.1,3814.9,2.62129638]
[1754585647064,6.99016818,3815.1,3814.4,0.5118]
[1754585647266,6.99017591,3815.1,3814.5,2.6215256]
[1754585647452,3.17129371,3815.0,3814.3,0.4349]
[1754585647659,3.17129371,3815.0,3814.1,2.62183988]
[1754585647660,0.55,3815.0,3814.1,2.62183988]
[1754585647858,3.17128993,3815.0,3814.1,2.62183988]
[1754585648070,0.55,3815.0,3814.0,0.5118]
[1754585648375,3.17137432,3814.8,3814.1,2.62183379]
[1754585648574,6.9894411,3814.7,3814.1,2.62183379]
[1754585648870,6.9894411,3814.7,3813.9,3.5686439]
[1754585648871,2.62158108,3814.5,3813.9,3.5686439]
[1754585649250,3.17152085,3814.6,3813.9,3.5686439]
[1754585649448,0.55,3814.6,3814.0,2.62191815]
[1754585649865,3.17150914,3814.6,3813.9,3.56866818]
[1754585650269,2.62157886,3814.5,3813.9,0.9467]
[1754585650470,0.55,3814.6,3813.9,0.9467]
[1754585650652,0.55,3814.6,3814.0,2.62186998]
[1754585651274,0.55,3814.6,3814.0,2.62191924]
[1754585652222,0.55,3814.6,3814.1,2.6218366]
[1754585652342,3.17155905,3814.6,3813.9,0.9467]
[1754585652670,0.55,3814.6,3814.1,2.62183791]
[1754585652868,3.17144982,3814.7,3814.1,3.05673791]
[1754585653072,4.366,3814.5,3814.1,0.4349]
[1754585653442,0.55,3814.4,3813.6,1.06926703]
[1754585653739,2.62172758,3814.3,3813.6,0.4349]
[1754585653964,3.1716553,3814.4,3813.6,0.4349]
[1754585654179,3.1716553,3814.4,3813.8,2.62205149]
[1754585654378,0.55,3814.4,3813.9,2.62197477]
[1754585654670,0.55,3814.4,3813.2,2.62240651]
[1754585654671,0.5544,3815.1,3814.1,2.62182201]
[1754585654863,0.55,3814.8,3814.0,0.9467]
[1754585655066,14.5,3815.0,3814.1,0.9467]
[1754585655236,14.5,3815.0,3813.5,0.02622263]
[1754585655237,0.0982,3816.0,3814.9,2.62126934]
[1754585655238,2.62060459,3816.0,3814.9,2.62126934]
[1754585655439,2.62060459,3816.0,3814.2,0.97291781]
[1754585655440,0.002,3815.4,3815.3,2.62102586]
[1754585655673,0.002,3815.4,3815.2,2.62108486]
[1754585655874,0.002,3815.4,3815.1,0.1312]
[1754585655875,4.364,3815.3,3815.1,0.1312]
[1754585656098,4.364,3815.3,3814.4,2.62161414]
[1754585656099,4.364,3815.3,3814.9,2.62125346]
[1754585656267,6.9850337,3815.3,3814.9,0.1312]
[1754585656465,6.9850337,3815.3,3814.6,2.62149021]
[1754585656466,3.17549456,3815.2,3814.6,2.62149021]
[1754585656666,0.55,3815.1,3814.7,2.7526264]
[1754585656999,3.17116445,3815.1,3814.7,0.1312]
[1754585657207,1.1044,3815.1,3814.7,0.1312]
[1754585657415,0.55,3814.9,3814.5,2.62156106]
[1754585657570,4.364,3814.8,3814.4,2.75283582]
[1754585657767,4.364,3814.8,3814.4,0.1312]
[1754585658082,0.55,3814.7,3814.2,3.05667328]
[1754585658312,0.0196714,3814.6,3813.9,0.5118]
[1754585658616,0.6812,3814.6,3814.1,0.1312]
[1754585658914,0.6812,3814.6,3814.1,0.5661]
[1754585659121,0.6812,3814.6,3814.1,1.0779]
[1754585659263,0.6812,3814.6,3814.1,0.1312]
[1754585660002,0.6812,3814.6,3814.1,2.75304006]
[1754585660174,0.6812,3814.6,3814.1,0.1312]
[1754585660585,1.2356,3814.6,3813.8,2.6220446]
[1754585660869,0.55,3814.3,3813.8,2.62204637]
[1754585661094,4.362,3814.2,3813.8,2.62204637]
[1754585661403,4.362,3814.2,3814.0,2.62189551]
[1754585661581,4.362,3814.2,3814.0,2.62187587]
[1754585661982,4.362,3814.2,3813.9,0.1312]
[1754585662571,0.55,3814.5,3814.2,2.62175837]
[1754585662771,0.55,3814.5,3813.5,0.77414454]
[1754585662772,3.1312,3814.9,3814.3,0.9467]
[1754585662972,4.91,3814.8,3814.4,2.62161892]
[1754585663211,4.91,3814.8,3814.5,3.56826887]
[1754585663610,4.91,3814.8,3814.5,0.9467]
[1754585663812,4.91,3814.8,3814.5,0.4349]
[1754585664191,4.91,3814.8,3814.3,0.643]
[1754585664490,4.91,3814.8,3814.3,3.69961056]
[1754585664811,4.36,3814.7,3814.3,3.69961056]
[1754585665824,2.62162892,3814.5,3814.1,0.001]
[1754585665979,0.55,3814.4,3814.1,0.001]
[1754585666179,0.55,3814.2,3814.1,0.001]
[1754585666592,3.19145316,3814.2,3814.1,0.001]
[1754585666796,3.72618176,3814.2,3814.1,0.001]
[1754585667005,7.06578689,3814.2,3814.1,0.001]
[1754585667237,21.56578689,3814.2,3814.1,0.001]
[1754585667404,22.408,3814.2,3814.1,0.001]
[1754585667630,25.16098176,3814.2,3814.1,0.001]
[1754585667825,18.1812,3814.2,3814.1,0.001]
[1754585668119,4.358,3814.2,3814.1,3.7445505]
[1754585668806,14.5,3814.6,3814.2,2.62176314]
[1754585669006,4.357,3814.5,3814.1,0.1322]
[1754585669208,0.1312,3814.7,3814.3,3.61219247]
[1754585669388,0.1929271,3815.5,3814.5,2.62151559]
[1754585669389,4.357,3814.6,3814.5,2.62151559]
[1754585669584,4.357,3814.6,3814.5,0.4383]
[1754585669790,4.357,3814.6,3814.4,0.1312]
[1754585670290,0.55,3814.5,3814.4,0.1312]
[1754585670591,0.55,3814.5,3814.1,2.75402794]
[1754585671177,0.55,3814.5,3814.1,0.1322]
[1754585671377,14.5,3814.9,3814.5,2.62153006]
[1754585671711,14.5,3814.9,3814.6,3.61198036]
[1754585671712,4.906,3814.8,3814.6,3.61198036]
[1754585672012,0.55,3814.9,3814.8,2.6213694]
[1754585672242,0.002,3815.3,3814.8,0.9905]
[1754585672243,0.1312,3815.2,3814.8,0.9905]
[1754585672437,0.1312,3815.2,3814.7,0.1312]
[1754585672438,0.1332,3815.3,3815.0,2.62123197]
[1754585672595,0.1332,3815.3,3815.2,2.75229456]
[1754585672596,0.002,3815.3,3815.2,2.75229456]
[1754585672983,0.002,3815.3,3815.2,3.7690055]
[1754585673892,0.002,3815.3,3815.2,3.74279456]
[1754585674094,0.002,3815.3,3815.2,0.1312]
[1754585674617,0.002,3815.3,3814.9,2.62128609]
[1754585674858,0.002,3815.3,3814.8,0.9905]
[1754585674859,4.354,3815.2,3815.0,0.1312]
[1754585675423,4.354,3815.2,3814.7,2.62143651]
[1754585675618,3.72923467,3815.1,3814.4,2.62163652]
[1754585675822,3.72923467,3815.1,3814.7,0.1312]
[1754585675823,0.55,3815.1,3814.7,0.1312]
[1754585676046,2.62124738,3815.0,3814.7,0.1312]
[1754585676327,2.62124738,3815.0,3814.5,0.1312]
[1754585676328,3.17130552,3814.9,3814.5,0.1312]
[1754585676625,6.97441885,3814.8,3814.5,0.1312]
[1754585676824,6.97437715,3814.8,3814.1,0.001]
[1754585677039,4.353,3814.8,3814.4,0.1312]
[1754585677417,6.97438436,3814.8,3814.4,0.1312]
[1754585677659,4.353,3814.8,3814.4,0.1312]
[1754585677859,14.5,3814.7,3814.4,0.1312]
[1754585678036,4.353,3814.8,3814.5,3.05982875]
[1754585678237,4.353,3814.8,3814.6,0.9905]
[1754585678423,4.353,3814.8,3814.4,0.1312]
[1754585678631,4.353,3814.8,3814.7,0.1312]
[1754585678825,4.351,3815.1,3815.0,2.62123197]
[1754585679062,4.351,3815.1,3815.0,4.19556354]
[1754585679270,0.1312,3815.2,3815.1,2.62116327]
[1754585679566,0.002,3815.3,3815.1,2.62116327]
[1754585679567,0.002,3815.3,3815.2,2.62109456]
[1754585679789,0.002,3815.3,3815.2,3.6378055]
[1754585680120,0.002,3815.3,3815.2,3.61159456]
[1754585680329,1e-08,3815.4,3815.3,5.62102586]
[1754585680528,1e-08,3815.8,3815.7,2.6207511]
[1754585680771,1e-08,3815.8,3815.7,3.17111727]
[1754585680951,1e-08,3815.8,3815.7,4.13540976]
[1754585681272,1e-08,3815.8,3815.7,4.26660976]
[1754585681641,1e-08,3815.8,3815.7,4.29281727]
[1754585682160,4.30300001,3816.7,3816.6,2.6201331]
[1754585682413,4.30300001,3816.7,3815.7,1.67206617]
[1754585682414,4.30300001,3816.7,3816.5,0.1312]
[1754585682933,0.24140041,3816.6,3816.4,2.75146519]
[1754585683228,0.19580868,3818.0,3816.6,0.9905]
[1754585683397,0.19580868,3818.0,3816.6,0.4383]
[1754585683398,4.348,3817.5,3816.6,0.4383]
[1754585683600,4.348,3817.5,3816.8,2.61992953]
[1754585683787,4.348,3817.5,3816.6,0.4383]
[1754585683788,4.348,3817.5,3817.1,2.61972148]
[1754585683984,4.348,3817.5,3816.6,0.4383]
[1754585683985,0.55,3817.4,3816.6,0.4383]
[1754585684190,4.348,3817.3,3816.9,2.61991329]
[1754585684496,4.348,3817.3,3816.6,0.4383]
[1754585684497,4.348,3817.3,3816.6,3.05842872]
[1754585684697,4.348,3817.3,3816.8,2.61998139]
[1754585684881,4.348,3817.3,3816.6,0.4383]
[1754585685086,4.348,3817.3,3816.5,2.62019802]
[1754585685087,4.8864,3817.3,3816.5,2.62019802]
[1754585685537,0.55,3817.2,3816.4,0.5522]
[1754585685683,0.55,3817.2,3816.6,0.02620133]
[1754585686017,0.002,3817.9,3816.7,0.9905]
[1754585686245,0.002,3817.9,3817.8,2.61930955]
[1754585686736,4.348,3817.9,3817.8,3.63600264]
[1754585687040,4.348,3817.9,3817.8,2.61930955]
[1754585687372,4.348,3817.9,3817.7,2.6193773]
[1754585687544,4.348,3817.9,3817.5,2.61950036]
[1754585687844,4.348,3817.9,3817.6,3.60988296]
[1754585687845,4.344,3817.8,3817.6,3.60988296]
[1754585687988,4.344,3817.8,3817.3,0.5522]
[1754585688194,4.344,3817.8,3817.4,2.6195229]
[1754585688427,4.344,3817.8,3816.8,3.0]
[1754585688428,0.55,3817.7,3817.0,2.61984431]
[1754585688728,0.55,3817.7,3817.0,2.6198341]
[1754585688929,0.55,3817.7,3816.7,0.9905]
[1754585688930,3.16938496,3817.7,3816.9,2.61988907]
[1754585689224,4.8824,3817.8,3816.8,2.61998919]
[1754585689225,3.16956869,3817.5,3816.8,2.61998919]
[1754585689439,3.16956869,3817.5,3816.3,0.4383]
[1754585689440,0.55,3817.5,3816.3,0.4383]
[1754585689644,0.55,3817.5,3817.0,2.61984492]
[1754585689802,4.343,3817.4,3817.0,0.9905]
[1754585690004,4.343,3817.4,3817.1,2.61978989]
[1754585690239,4.343,3817.4,3817.0,0.4383]
[1754585690240,0.55,3817.3,3815.9,3.0]
[1754585690404,0.55,3817.3,3816.7,2.62001252]
[1754585690607,3.16966619,3817.3,3816.6,2.6201287]
[1754585690791,3.16966619,3817.3,3816.3,3.61083519]
[1754585690792,2.61973526,3817.2,3816.5,2.62018154]
[1754585690987,0.55,3817.0,3815.9,0.9905]
[1754585691601,2.61980245,3817.1,3815.9,0.9905]
[1754585691602,0.55,3817.1,3815.9,0.9905]
[1754585691806,0.55,3817.1,3816.6,2.62012775]
[1754585692012,0.55,3817.1,3816.2,2.62037571]
[1754585692203,0.55,3817.1,3816.4,2.6202186]
[1754585692409,3.1697919,3817.1,3816.4,2.6202186]
[1754585693127,0.1312,3817.0,3816.6,2.62012808]
[1754585693330,0.55,3817.4,3816.9,0.1312]
[1754585693504,0.55,3817.4,3816.9,2.75109762]
[1754585693505,4.341,3817.3,3816.9,2.75109762]
[1754585693708,4.341,3817.3,3816.9,3.74159762]
[1754585694225,0.55,3817.2,3816.9,0.1312]
[1754585694523,0.55,3817.2,3815.0,3.4084398]
[1754585694524,0.6812,3817.0,3816.5,2.75139675]
[1754585694726,0.6812,3817.0,3816.5,0.1312]
[1754585694896,0.55,3816.8,3816.5,0.1312]
[1754585695091,4.341,3816.7,3816.5,0.1312]
[1754585695296,4.341,3816.7,3816.6,2.6201331]
[1754585695530,4.34,3816.7,3816.6,3.6106331]
[1754585695904,4.34,3816.7,3816.6,0.9905]
[1754585696109,4.34,3816.7,3816.5,2.75137659]
[1754585696306,4.34,3816.7,3816.6,2.6201331]
[1754585696628,0.55,3816.9,3816.6,0.4383]
[1754585696834,4.34,3816.7,3816.6,2.6201331]
[1754585697127,0.1312,3817.0,3816.7,2.6200484]
[1754585697294,4.339,3816.9,3816.8,2.6199958]
[1754585697510,4.339,3816.9,3816.8,3.6104958]
[1754585697706,4.339,3816.9,3816.8,3.7416958]
[1754585698007,4.339,3817.0,3816.9,2.61992716]
[1754585698223,0.6812,3817.7,3817.3,2.6196463]
[1754585698421,4.339,3817.6,3817.0,0.4291]
[1754585698621,4.339,3817.6,3817.2,0.1312]
[1754585698844,4.339,3817.6,3817.2,2.75087207]
[1754585699008,4.339,3817.6,3817.2,0.1312]
[1754585699208,1.0755,3817.5,3816.7,2.62005692]
[1754585699433,1.2067,3817.5,3817.0,2.75104481]
[1754585699742,0.55,3817.3,3816.9,0.1312]
[1754585700040,0.55,3817.4,3817.0,2.61985852]
[1754585700241,0.55,3817.4,3816.9,0.1312]
[1754585700445,0.5696714,3817.4,3816.9,0.1312]
[1754585700630,0.6812,3817.1,3816.2,2.62040773]
[1754585700942,3.0,3817.2,3815.8,2.62166948]
[1754585700943,0.55,3816.9,3815.8,2.62166948]
[1754585701241,10.92982594,3817.8,3815.8,2.62166948]
[1754585701242,0.55,3816.5,3816.0,0.1312]
[1754585701417,2.61963204,3817.4,3816.7,2.62003796]
[1754585701742,0.55,3817.2,3816.9,2.61988376]
[1754585701942,0.55,3817.2,3816.5,3.55243316]
[1754585702113,0.55,3817.2,3816.8,2.75115407]
[1754585702308,0.55,3817.3,3816.8,2.75115407]
[1754585702507,4.336,3817.2,3816.9,2.6199172]
[1754585702830,4.336,3817.2,3816.8,3.68344474]
[1754585703008,4.336,3817.2,3816.8,1.0635]
[1754585703204,0.1312,3817.4,3817.3,2.61965263]